[Event "Titled Tuesday Blitz August 23 Late 2022"]
[White "Pinheiro, Iung Alicio de O."]
[Black "Nakamura, Hikaru"]
[WhiteFideId "2104350"]
[BlackFideId "2016192"]
[WhiteElo "2283"]
[BlackElo "2850"]
[Result "0-1"]
[Round "04"]
[TimeControl "180+1"]
[Date "2022.08.23"]
[WhiteClock "0:00:13"]
[BlackClock "0:01:47"]

1. c4 {[%clk 0:03:00]}  g6 {[%clk 0:02:59]} 2. g3 {[%clk 0:03:00]}  Bg7 {[%clk 0:02:59]} 3. Bg2 {[%clk 0:03:01]}  d6 {[%clk 0:03:00]} 4. Nc3 {[%clk 0:03:00]}  Bd7 {[%clk 0:03:01]} 5. d3 {[%clk 0:03:00]}  Qc8 {[%clk 0:02:59]} 6. e4 {[%clk 0:02:57]}  Nc6 {[%clk 0:02:59]} 7. h3 {[%clk 0:02:55]}  h5 {[%clk 0:02:56]} 8. Nge2 {[%clk 0:02:54]}  e5 {[%clk 0:02:55]} 9. Bg5 {[%clk 0:02:52]}  Nd8 {[%clk 0:02:52]} 10. Rc1 {[%clk 0:02:44]}  Ne6 {[%clk 0:02:51]} 11. Be3 {[%clk 0:02:44]}  h4 {[%clk 0:02:46]} 12. g4 {[%clk 0:02:19]}  g5 {[%clk 0:02:46]} 13. d4 {[%clk 0:02:17]}  c5 {[%clk 0:02:41]} 14. dxe5 {[%clk 0:02:15]}  dxe5 {[%clk 0:02:40]} 15. Nd5 {[%clk 0:02:10]}  Ne7 {[%clk 0:02:40]} 16. Nec3 {[%clk 0:02:07]}  Ng6 {[%clk 0:02:38]} 17. f3 {[%clk 0:02:05]}  Ngf4 {[%clk 0:02:26]} 18. Kf2 {[%clk 0:02:04]}  b6 {[%clk 0:02:19]} 19. Qd2 {[%clk 0:02:01]}  Qb7 {[%clk 0:02:19]} 20. Rhd1 {[%clk 0:02:00]}  Bc6 {[%clk 0:02:19]} 21. Bf1 {[%clk 0:01:56]}  O-O {[%clk 0:02:19]} 22. b3 {[%clk 0:01:50]}  Rfd8 {[%clk 0:02:17]} 23. Qb2 {[%clk 0:01:50]}  Nd4 {[%clk 0:02:14]} 24. a3 {[%clk 0:01:28]}  Rac8 {[%clk 0:02:13]} 25. Ne2 {[%clk 0:01:22]}  Nde6 {[%clk 0:02:06]} 26. Nec3 {[%clk 0:01:20]}  Be8 {[%clk 0:02:05]} 27. b4 {[%clk 0:01:15]}  cxb4 {[%clk 0:02:04]} 28. axb4 {[%clk 0:01:15]}  Nd4 {[%clk 0:02:00]} 29. Ra1 {[%clk 0:01:13]}  Bc6 {[%clk 0:01:57]} 30. Rdc1 {[%clk 0:00:57]}  b5 {[%clk 0:01:50]} 31. c5 {[%clk 0:00:56]}  Nxd5 {[%clk 0:01:44]} 32. exd5 {[%clk 0:00:46]}  Bxd5 {[%clk 0:01:45]} 33. Nxd5 {[%clk 0:00:38]}  Qxd5 {[%clk 0:01:46]} 34. Bxd4 {[%clk 0:00:35]}  exd4 {[%clk 0:01:47]} 35. Bd3 {[%clk 0:00:35]}  Qe5 {[%clk 0:01:47]} 36. Kf1 {[%clk 0:00:25]}  Qf4 {[%clk 0:01:47]} 37. Qf2 {[%clk 0:00:16]}  Re8 {[%clk 0:01:47]} 38. Re1 {[%clk 0:00:15]}  Re3 {[%clk 0:01:47]} 39. Rxe3 {[%clk 0:00:12]}  dxe3 {[%clk 0:01:47]} 40. Qe2 {[%clk 0:00:13]}  Bxa1 {[%clk 0:01:47]} 0-1


[Site "https://www.chess.com"]

[Event "Titled Tuesday Blitz August 23 Late 2022"]
[White "Seo, Jung Min"]
[Black "Gubajdullin, Alexei"]
[WhiteFideId "1734687"]
[BlackFideId "4141202"]
[WhiteElo "2414"]
[BlackElo "2214"]
[Result "1-0"]
[Round "04"]
[TimeControl "180+1"]
[Date "2022.08.23"]
[WhiteClock "0:01:31"]
[BlackClock "0:00:08"]

1. e4 {[%clk 0:03:00]}  c6 {[%clk 0:02:59]} 2. d4 {[%clk 0:02:59]}  d5 {[%clk 0:02:58]} 3. e5 {[%clk 0:03:00]}  Bf5 {[%clk 0:02:58]} 4. Nf3 {[%clk 0:03:00]}  e6 {[%clk 0:02:58]} 5. Be2 {[%clk 0:03:00]}  Nd7 {[%clk 0:02:56]} 6. O-O {[%clk 0:02:59]}  Ne7 {[%clk 0:02:56]} 7. Nbd2 {[%clk 0:02:59]}  h6 {[%clk 0:02:56]} 8. Nb3 {[%clk 0:02:59]}  Bh7 {[%clk 0:02:55]} 9. a4 {[%clk 0:02:59]}  Ng6 {[%clk 0:02:55]} 10. a5 {[%clk 0:02:58]}  a6 {[%clk 0:02:55]} 11. Be3 {[%clk 0:02:57]}  Be7 {[%clk 0:02:54]} 12. Ne1 {[%clk 0:02:56]}  O-O {[%clk 0:02:53]} 13. Nd3 {[%clk 0:02:56]}  Qc7 {[%clk 0:02:46]} 14. c3 {[%clk 0:02:56]}  Nh4 {[%clk 0:02:30]} 15. f4 {[%clk 0:02:52]}  f6 {[%clk 0:02:29]} 16. g3 {[%clk 0:02:51]}  Nf5 {[%clk 0:02:28]} 17. Bf2 {[%clk 0:02:51]}  fxe5 {[%clk 0:02:28]} 18. fxe5 {[%clk 0:02:48]}  Bg5 {[%clk 0:02:27]} 19. Bg4 {[%clk 0:02:47]}  Rae8 {[%clk 0:02:22]} 20. Qe2 {[%clk 0:02:46]}  Kh8 {[%clk 0:02:15]} 21. Nbc5 {[%clk 0:02:44]}  Nxc5 {[%clk 0:02:14]} 22. Nxc5 {[%clk 0:02:44]}  Qc8 {[%clk 0:02:03]} 23. b4 {[%clk 0:02:43]}  Rf7 {[%clk 0:02:00]} 24. Rad1 {[%clk 0:02:38]}  Ref8 {[%clk 0:01:58]} 25. Rd3 {[%clk 0:02:35]}  Be7 {[%clk 0:01:51]} 26. Nb3 {[%clk 0:02:28]}  Bd8 {[%clk 0:01:40]} 27. Rf3 {[%clk 0:02:26]}  Be7 {[%clk 0:01:29]} 28. Be1 {[%clk 0:02:25]}  Qd7 {[%clk 0:01:27]} 29. Bd2 {[%clk 0:02:25]}  Qe8 {[%clk 0:01:26]} 30. Bh3 {[%clk 0:02:21]}  Bg6 {[%clk 0:01:25]} 31. R3f2 {[%clk 0:02:15]}  Kh7 {[%clk 0:01:23]} 32. Nc1 {[%clk 0:02:14]}  Qd8 {[%clk 0:01:22]} 33. Nd3 {[%clk 0:02:13]}  Qe8 {[%clk 0:01:19]} 34. Nf4 {[%clk 0:02:12]}  Bg5 {[%clk 0:01:13]} 35. Nxg6 {[%clk 0:02:11]}  Kxg6 {[%clk 0:01:13]} 36. Bxg5 {[%clk 0:02:08]}  hxg5 {[%clk 0:01:09]} 37. Bg4 {[%clk 0:02:04]}  Kh7 {[%clk 0:01:05]} 38. Bh5 {[%clk 0:02:01]}  g6 {[%clk 0:01:04]} 39. Bg4 {[%clk 0:02:01]}  Nh6 {[%clk 0:01:02]} 40. Rf6 {[%clk 0:01:57]}  Nf5 {[%clk 0:01:01]} 41. Bxf5 {[%clk 0:01:54]}  exf5 {[%clk 0:00:58]} 42. Rd6 {[%clk 0:01:45]}  g4 {[%clk 0:00:52]} 43. Qd2 {[%clk 0:01:43]}  Qe7 {[%clk 0:00:50]} 44. Kg2 {[%clk 0:01:41]}  Rd8 {[%clk 0:00:48]} 45. Rxd8 {[%clk 0:01:40]}  Qxd8 {[%clk 0:00:48]} 46. Rh1 {[%clk 0:01:40]}  g5 {[%clk 0:00:37]} 47. h3 {[%clk 0:01:40]}  gxh3+ {[%clk 0:00:36]} 48. Rxh3+ {[%clk 0:01:40]}  Kg6 {[%clk 0:00:37]} 49. Qe2 {[%clk 0:01:40]}  g4 {[%clk 0:00:33]} 50. Rh1 {[%clk 0:01:40]}  Rh7 {[%clk 0:00:32]} 51. Rxh7 {[%clk 0:01:40]}  Kxh7 {[%clk 0:00:32]} 52. Qe3 {[%clk 0:01:38]}  Kg6 {[%clk 0:00:31]} 53. e6 {[%clk 0:01:34]}  Qe7 {[%clk 0:00:10]} 54. Kf1 {[%clk 0:01:33]}  Kf6 {[%clk 0:00:08]} 55. Qh6# {[%clk 0:01:31]} 1-0


[Site "https://www.chess.com"]

[Event "Titled Tuesday Blitz August 23 Late 2022"]
[White "Shirov, Alexei"]
[Black "Taichman, Ori"]
[WhiteFideId "2209390"]
[BlackFideId "2804069"]
[WhiteElo "2678"]
[BlackElo "2227"]
[Result "1-0"]
[Round "04"]
[TimeControl "180+1"]
[Date "2022.08.23"]
[WhiteClock "0:01:02"]
[BlackClock "0:00:03"]

1. e4 {[%clk 0:03:00]}  c5 {[%clk 0:02:52]} 2. Nf3 {[%clk 0:03:00]}  Nc6 {[%clk 0:02:52]} 3. d4 {[%clk 0:03:00]}  cxd4 {[%clk 0:02:53]} 4. Nxd4 {[%clk 0:02:59]}  d5 {[%clk 0:02:54]} 5. Nb5 {[%clk 0:02:55]}  dxe4 {[%clk 0:02:37]} 6. Qxd8+ {[%clk 0:02:50]}  Kxd8 {[%clk 0:02:38]} 7. Be3 {[%clk 0:02:42]}  e5 {[%clk 0:02:19]} 8. N1c3 {[%clk 0:02:40]}  Bf5 {[%clk 0:02:19]} 9. O-O-O+ {[%clk 0:02:35]}  Kc8 {[%clk 0:02:19]} 10. Nd5 {[%clk 0:02:30]}  Nf6 {[%clk 0:02:09]} 11. Bc4 {[%clk 0:02:08]}  Nxd5 {[%clk 0:01:54]} 12. Bxd5 {[%clk 0:02:06]}  f6 {[%clk 0:01:54]} 13. h3 {[%clk 0:01:52]}  Be7 {[%clk 0:01:36]} 14. g4 {[%clk 0:01:48]}  Bd7 {[%clk 0:01:29]} 15. Bxe4 {[%clk 0:01:48]}  h5 {[%clk 0:01:27]} 16. f4 {[%clk 0:01:37]}  a6 {[%clk 0:01:18]} 17. Nc3 {[%clk 0:01:36]}  Bb4 {[%clk 0:01:12]} 18. Nd5 {[%clk 0:01:36]}  Ba5 {[%clk 0:01:10]} 19. Bb6 {[%clk 0:01:31]}  exf4 {[%clk 0:00:47]} 20. Bxa5 {[%clk 0:01:24]}  Nxa5 {[%clk 0:00:48]} 21. Nb6+ {[%clk 0:01:22]}  Kc7 {[%clk 0:00:49]} 22. Nxd7 {[%clk 0:01:19]}  hxg4 {[%clk 0:00:43]} 23. hxg4 {[%clk 0:01:16]}  Rxh1 {[%clk 0:00:43]} 24. Bxh1 {[%clk 0:01:15]}  Rh8 {[%clk 0:00:31]} 25. Nc5 {[%clk 0:01:14]}  g5 {[%clk 0:00:23]} 26. b4 {[%clk 0:01:08]}  Nc4 {[%clk 0:00:23]} 27. Rd7+ {[%clk 0:01:06]}  Kb8 {[%clk 0:00:20]} 28. Rxb7+ {[%clk 0:01:03]}  Kc8 {[%clk 0:00:20]} 29. Bd5 {[%clk 0:01:02]}  Ne5 {[%clk 0:00:03]} 30. Be6+ {[%clk 0:01:02]}  Kd8 {[%clk 0:00:03]} 31. Rb8+ {[%clk 0:01:02]} 1-0


[Site "https://www.chess.com"]

[Event "Titled Tuesday Blitz August 23 Late 2022"]
[White "Sjugirov, Sanan"]
[Black "Caruana, Fabiano"]
[WhiteFideId "4189302"]
[BlackFideId "2020009"]
[WhiteElo "2609"]
[BlackElo "2847"]
[Result "0-1"]
[Round "04"]
[TimeControl "180+1"]
[Date "2022.08.23"]
[WhiteClock "0:00:03"]
[BlackClock "0:00:05"]

1. e4 {[%clk 0:03:00]}  c5 {[%clk 0:02:59]} 2. Nf3 {[%clk 0:03:00]}  e6 {[%clk 0:03:00]} 3. d3 {[%clk 0:02:54]}  Nc6 {[%clk 0:02:59]} 4. g3 {[%clk 0:02:35]}  g6 {[%clk 0:02:59]} 5. Bg2 {[%clk 0:02:35]}  Bg7 {[%clk 0:03:00]} 6. h4 {[%clk 0:02:35]}  h6 {[%clk 0:02:58]} 7. O-O {[%clk 0:02:34]}  Nge7 {[%clk 0:02:55]} 8. c3 {[%clk 0:02:33]}  d5 {[%clk 0:02:55]} 9. Re1 {[%clk 0:02:27]}  O-O {[%clk 0:02:51]} 10. e5 {[%clk 0:02:26]}  b6 {[%clk 0:02:44]} 11. Bf4 {[%clk 0:02:25]}  Ba6 {[%clk 0:02:39]} 12. a4 {[%clk 0:02:22]}  Nf5 {[%clk 0:02:35]} 13. Na3 {[%clk 0:02:20]}  Rb8 {[%clk 0:02:17]} 14. Nb5 {[%clk 0:02:18]}  Bb7 {[%clk 0:02:13]} 15. Qd2 {[%clk 0:02:14]}  Na5 {[%clk 0:02:10]} 16. Rad1 {[%clk 0:02:02]}  Bc6 {[%clk 0:01:41]} 17. b4 {[%clk 0:01:22]}  Nb7 {[%clk 0:01:39]} 18. Nxa7 {[%clk 0:00:49]}  Bxa4 {[%clk 0:01:38]} 19. Ra1 {[%clk 0:00:50]}  Bd7 {[%clk 0:01:37]} 20. h5 {[%clk 0:00:48]}  g5 {[%clk 0:01:30]} 21. Nxg5 {[%clk 0:00:47]}  hxg5 {[%clk 0:01:30]} 22. Bxg5 {[%clk 0:00:48]}  f6 {[%clk 0:01:28]} 23. exf6 {[%clk 0:00:44]}  Bxf6 {[%clk 0:01:29]} 24. Bf4 {[%clk 0:00:44]}  cxb4 {[%clk 0:01:13]} 25. cxb4 {[%clk 0:00:39]}  Ra8 {[%clk 0:01:14]} 26. Ra6 {[%clk 0:00:34]}  Nd4 {[%clk 0:01:03]} 27. Be5 {[%clk 0:00:13]}  Bxe5 {[%clk 0:01:02]} 28. Rxe5 {[%clk 0:00:14]}  Kh7 {[%clk 0:00:17]} 29. Rg5 {[%clk 0:00:12]}  Be8 {[%clk 0:00:17]} 30. h6 {[%clk 0:00:11]}  Bg6 {[%clk 0:00:16]} 31. Qe3 {[%clk 0:00:11]}  Nf5 {[%clk 0:00:15]} 32. Qc1 {[%clk 0:00:09]}  Qf6 {[%clk 0:00:14]} 33. b5 {[%clk 0:00:05]}  Nd4 {[%clk 0:00:14]} 34. Qe3 {[%clk 0:00:05]}  Nf5 {[%clk 0:00:11]} 35. Qd2 {[%clk 0:00:05]}  Nc5 {[%clk 0:00:11]} 36. Ra3 {[%clk 0:00:04]}  Nd4 {[%clk 0:00:11]} 37. f4 {[%clk 0:00:02]}  Nf5 {[%clk 0:00:07]} 38. Kh2 {[%clk 0:00:03]}  Nxh6 {[%clk 0:00:07]} 39. Qe3 {[%clk 0:00:02]}  Nf5 {[%clk 0:00:07]} 40. Qf2 {[%clk 0:00:02]}  Kg7 {[%clk 0:00:07]} 41. g4 {[%clk 0:00:03]}  Rh8+ {[%clk 0:00:07]} 42. Kg1 {[%clk 0:00:04]}  Nh4 {[%clk 0:00:07]} 43. Qg3 {[%clk 0:00:04]}  Nxg2 {[%clk 0:00:07]} 44. Kxg2 {[%clk 0:00:05]}  Kf7 {[%clk 0:00:05]} 45. f5 {[%clk 0:00:04]}  Qxg5 {[%clk 0:00:05]} 46. fxg6+ {[%clk 0:00:05]}  Kxg6 {[%clk 0:00:05]} 47. Nc6 {[%clk 0:00:04]}  Qd2+ {[%clk 0:00:05]} 48. Kf3 {[%clk 0:00:04]}  Qd1+ {[%clk 0:00:04]} 49. Kf4 {[%clk 0:00:04]}  Qd2+ {[%clk 0:00:04]} 50. Ke5 {[%clk 0:00:04]}  Qe2+ {[%clk 0:00:04]} 51. Kd6 {[%clk 0:00:04]}  Rxa3 {[%clk 0:00:05]} 52. Ne7+ {[%clk 0:00:04]}  Kf7 {[%clk 0:00:04]} 53. Qf4+ {[%clk 0:00:04]}  Ke8 {[%clk 0:00:05]} 54. Nc6 {[%clk 0:00:04]}  Nb7+ {[%clk 0:00:05]} 55. Kc7 {[%clk 0:00:03]}  Qh2 {[%clk 0:00:05]} 0-1


[Site "https://www.chess.com"]

[Event "Titled Tuesday Blitz August 23 Late 2022"]
[White "Tahbaz, Arash"]
[Black "Machidon, Cristi"]
[WhiteFideId "12528846"]
[BlackFideId "13904590"]
[WhiteElo "2378"]
[BlackElo "2312"]
[Result "1-0"]
[Round "04"]
[TimeControl "180+1"]
[Date "2022.08.23"]
[WhiteClock "0:00:27"]
[BlackClock "0:00:02"]

1. Nf3 {[%clk 0:03:00]}  d5 {[%clk 0:02:59]} 2. g3 {[%clk 0:03:01]}  c6 {[%clk 0:03:00]} 3. Bg2 {[%clk 0:03:02]}  Bf5 {[%clk 0:03:00]} 4. O-O {[%clk 0:03:03]}  e6 {[%clk 0:03:00]} 5. d3 {[%clk 0:03:03]}  h6 {[%clk 0:03:01]} 6. Nbd2 {[%clk 0:03:04]}  Nf6 {[%clk 0:03:01]} 7. b3 {[%clk 0:03:05]}  Be7 {[%clk 0:03:01]} 8. Bb2 {[%clk 0:03:06]}  O-O {[%clk 0:03:00]} 9. Re1 {[%clk 0:03:06]}  a5 {[%clk 0:03:00]} 10. e4 {[%clk 0:03:06]}  Bh7 {[%clk 0:03:01]} 11. a3 {[%clk 0:03:06]}  c5 {[%clk 0:02:59]} 12. exd5 {[%clk 0:03:04]}  Nxd5 {[%clk 0:02:56]} 13. a4 {[%clk 0:03:01]}  Nc6 {[%clk 0:02:55]} 14. Nc4 {[%clk 0:02:51]}  Ndb4 {[%clk 0:02:38]} 15. Nfe5 {[%clk 0:02:43]}  Qc7 {[%clk 0:02:37]} 16. Nxc6 {[%clk 0:02:35]}  Nxc6 {[%clk 0:02:36]} 17. Qg4 {[%clk 0:02:35]}  Bg6 {[%clk 0:02:14]} 18. Rxe6 {[%clk 0:02:04]}  h5 {[%clk 0:02:12]} 19. Rxc6 {[%clk 0:01:43]}  bxc6 {[%clk 0:02:10]} 20. Qf3 {[%clk 0:01:43]}  f6 {[%clk 0:01:45]} 21. Qxc6 {[%clk 0:01:39]}  Qxc6 {[%clk 0:01:46]} 22. Bxc6 {[%clk 0:01:39]}  Ra6 {[%clk 0:01:44]} 23. Re1 {[%clk 0:01:36]}  Rxc6 {[%clk 0:01:39]} 24. Rxe7 {[%clk 0:01:34]}  Re8 {[%clk 0:01:35]} 25. Rxe8+ {[%clk 0:01:32]}  Bxe8 {[%clk 0:01:35]} 26. f3 {[%clk 0:01:29]}  Re6 {[%clk 0:01:24]} 27. Kf2 {[%clk 0:01:28]}  Bc6 {[%clk 0:01:19]} 28. Nxa5 {[%clk 0:01:27]}  Bd5 {[%clk 0:01:20]} 29. Ba3 {[%clk 0:01:26]}  g5 {[%clk 0:01:13]} 30. Bxc5 {[%clk 0:01:25]}  g4 {[%clk 0:01:13]} 31. f4 {[%clk 0:01:22]}  Kf7 {[%clk 0:00:58]} 32. c4 {[%clk 0:01:21]}  Bf3 {[%clk 0:00:57]} 33. Be3 {[%clk 0:01:21]}  Ke7 {[%clk 0:00:45]} 34. b4 {[%clk 0:01:22]}  Ra6 {[%clk 0:00:40]} 35. d4 {[%clk 0:01:15]}  Bd1 {[%clk 0:00:25]} 36. Bd2 {[%clk 0:01:07]}  Bxa4 {[%clk 0:00:21]} 37. b5 {[%clk 0:01:07]}  Re6 {[%clk 0:00:20]} 38. Nc6+ {[%clk 0:00:43]}  Kd7 {[%clk 0:00:20]} 39. Na5 {[%clk 0:00:39]}  Bd1 {[%clk 0:00:17]} 40. Be3 {[%clk 0:00:39]}  Ba4 {[%clk 0:00:16]} 41. Ke2 {[%clk 0:00:39]}  Bc2 {[%clk 0:00:13]} 42. Kd2 {[%clk 0:00:39]}  Be4 {[%clk 0:00:13]} 43. d5 {[%clk 0:00:37]}  Re8 {[%clk 0:00:12]} 44. Nb7 {[%clk 0:00:37]}  Bf3 {[%clk 0:00:11]} 45. Kd3 {[%clk 0:00:34]}  Ra8 {[%clk 0:00:10]} 46. Nc5+ {[%clk 0:00:33]}  Kd6 {[%clk 0:00:10]} 47. Ne4+ {[%clk 0:00:33]}  Bxe4+ {[%clk 0:00:07]} 48. Kxe4 {[%clk 0:00:34]}  Ra4 {[%clk 0:00:07]} 49. Kd4 {[%clk 0:00:34]}  f5 {[%clk 0:00:07]} 50. b6 {[%clk 0:00:32]}  Rb4 {[%clk 0:00:05]} 51. Bd2 {[%clk 0:00:31]}  Ra4 {[%clk 0:00:05]} 52. Bc3 {[%clk 0:00:32]}  h4 {[%clk 0:00:04]} 53. gxh4 {[%clk 0:00:33]}  Kd7 {[%clk 0:00:03]} 54. Kc5 {[%clk 0:00:27]}  Ra2 {[%clk 0:00:04]} 55. Be5 {[%clk 0:00:28]}  Rxh2 {[%clk 0:00:03]} 56. b7 {[%clk 0:00:27]}  Rb2 {[%clk 0:00:02]} 1-0


[Site "https://www.chess.com"]

[Event "Titled Tuesday Blitz August 23 Late 2022"]
[White "Theodorou, Nikolas"]
[Black "Zhigalko, Sergei"]
[WhiteFideId "4262875"]
[BlackFideId "13502956"]
[WhiteElo "2484"]
[BlackElo "2662"]
[Result "1-0"]
[Round "04"]
[TimeControl "180+1"]
[Date "2022.08.23"]
[WhiteClock "0:00:13"]
[BlackClock "0:00:01"]

1. Nf3 {[%clk 0:02:59]}  d5 {[%clk 0:03:00]} 2. g3 {[%clk 0:02:59]}  Bg4 {[%clk 0:03:00]} 3. Bg2 {[%clk 0:02:59]}  e6 {[%clk 0:02:55]} 4. O-O {[%clk 0:02:59]}  Nd7 {[%clk 0:02:52]} 5. c4 {[%clk 0:02:59]}  c6 {[%clk 0:02:52]} 6. d3 {[%clk 0:02:59]}  Ngf6 {[%clk 0:02:49]} 7. Qb3 {[%clk 0:03:00]}  Qb6 {[%clk 0:02:46]} 8. Be3 {[%clk 0:03:00]}  Qxb3 {[%clk 0:02:46]} 9. axb3 {[%clk 0:03:01]}  a6 {[%clk 0:02:46]} 10. Bd4 {[%clk 0:03:01]}  Bd6 {[%clk 0:02:45]} 11. Bc3 {[%clk 0:02:58]}  e5 {[%clk 0:02:39]} 12. b4 {[%clk 0:02:49]}  O-O {[%clk 0:02:31]} 13. h3 {[%clk 0:02:44]}  Bf5 {[%clk 0:02:13]} 14. g4 {[%clk 0:02:41]}  Bg6 {[%clk 0:02:04]} 15. Nh4 {[%clk 0:02:40]}  d4 {[%clk 0:01:21]} 16. Bd2 {[%clk 0:02:38]}  Rfe8 {[%clk 0:01:17]} 17. Nxg6 {[%clk 0:02:37]}  hxg6 {[%clk 0:01:18]} 18. Na3 {[%clk 0:02:08]}  e4 {[%clk 0:01:11]} 19. Nc2 {[%clk 0:01:57]}  exd3 {[%clk 0:01:04]} 20. exd3 {[%clk 0:01:58]}  Ne5 {[%clk 0:01:04]} 21. Ra3 {[%clk 0:01:58]}  Rad8 {[%clk 0:00:52]} 22. f4 {[%clk 0:01:58]}  Ned7 {[%clk 0:00:52]} 23. Nxd4 {[%clk 0:01:58]}  Nf8 {[%clk 0:00:26]} 24. Nc2 {[%clk 0:01:44]}  Ne6 {[%clk 0:00:26]} 25. f5 {[%clk 0:01:38]}  gxf5 {[%clk 0:00:26]} 26. gxf5 {[%clk 0:01:39]}  Nf8 {[%clk 0:00:20]} 27. Rb3 {[%clk 0:01:31]}  N8d7 {[%clk 0:00:17]} 28. Re1 {[%clk 0:01:25]}  Bg3 {[%clk 0:00:12]} 29. Rxe8+ {[%clk 0:01:17]}  Rxe8 {[%clk 0:00:13]} 30. Kf1 {[%clk 0:01:17]}  Nh5 {[%clk 0:00:10]} 31. d4 {[%clk 0:01:08]}  Bf4 {[%clk 0:00:09]} 32. Be1 {[%clk 0:01:06]}  Ndf6 {[%clk 0:00:05]} 33. Bf3 {[%clk 0:01:03]}  g6 {[%clk 0:00:03]} 34. fxg6 {[%clk 0:01:00]}  fxg6 {[%clk 0:00:04]} 35. Rd3 {[%clk 0:00:56]}  Kg7 {[%clk 0:00:03]} 36. Bf2 {[%clk 0:00:30]}  Bd6 {[%clk 0:00:03]} 37. d5 {[%clk 0:00:27]}  cxd5 {[%clk 0:00:02]} 38. Bxd5 {[%clk 0:00:28]}  Nf4 {[%clk 0:00:02]} 39. Rf3 {[%clk 0:00:19]}  N6xd5 {[%clk 0:00:02]} 40. cxd5 {[%clk 0:00:20]}  Nxd5 {[%clk 0:00:03]} 41. Rd3 {[%clk 0:00:21]}  Bxb4 {[%clk 0:00:01]} 42. Rxd5 {[%clk 0:00:20]}  Be7 {[%clk 0:00:01]} 43. Rd7 {[%clk 0:00:21]}  Kf6 {[%clk 0:00:01]} 44. Rxb7 {[%clk 0:00:22]}  Bd6 {[%clk 0:00:01]} 45. Ne3 {[%clk 0:00:22]}  Kg5 {[%clk 0:00:01]} 46. Ng4 {[%clk 0:00:21]}  Bf4 {[%clk 0:00:01]} 47. Rd7 {[%clk 0:00:20]}  Kf5 {[%clk 0:00:01]} 48. Rd5+ {[%clk 0:00:20]}  Ke4 {[%clk 0:00:01]} 49. Rd4+ {[%clk 0:00:20]}  Kf5 {[%clk 0:00:01]} 50. Kg2 {[%clk 0:00:19]}  g5 {[%clk 0:00:02]} 51. Kf3 {[%clk 0:00:19]}  Rb8 {[%clk 0:00:02]} 52. b4 {[%clk 0:00:19]}  Ke6 {[%clk 0:00:03]} 53. Be3 {[%clk 0:00:17]}  Bd6 {[%clk 0:00:01]} 54. Re4+ {[%clk 0:00:13]}  Kf5 {[%clk 0:00:01]} 55. Bd2 {[%clk 0:00:13]}  Rc8 {[%clk 0:00:01]} 56. Ne3+ {[%clk 0:00:13]}  Kg6 {[%clk 0:00:01]} 57. Nd5 {[%clk 0:00:13]} 1-0


[Site "https://www.chess.com"]

[Event "Titled Tuesday Blitz August 23 Late 2022"]
[White "Xiong, Jeffery"]
[Black "Papasimakopoulos, Alexandros"]
[WhiteFideId "2047640"]
[BlackFideId "4244125"]
[WhiteElo "2714"]
[BlackElo "2357"]
[Result "1-0"]
[Round "04"]
[TimeControl "180+1"]
[Date "2022.08.23"]
[WhiteClock "0:00:30"]
[BlackClock "0:00:01"]

1. d4 {[%clk 0:03:00]}  e6 {[%clk 0:03:00]} 2. e4 {[%clk 0:03:00]}  d5 {[%clk 0:02:59]} 3. e5 {[%clk 0:03:00]}  b6 {[%clk 0:02:56]} 4. Nf3 {[%clk 0:02:54]}  Ne7 {[%clk 0:02:55]} 5. h4 {[%clk 0:02:52]}  Ba6 {[%clk 0:02:53]} 6. Bxa6 {[%clk 0:02:52]}  Nxa6 {[%clk 0:02:53]} 7. c3 {[%clk 0:02:52]}  Nb8 {[%clk 0:02:53]} 8. h5 {[%clk 0:02:53]}  h6 {[%clk 0:02:53]} 9. Nbd2 {[%clk 0:02:51]}  c5 {[%clk 0:02:53]} 10. Nf1 {[%clk 0:02:51]}  Nbc6 {[%clk 0:02:53]} 11. Ne3 {[%clk 0:02:50]}  Qd7 {[%clk 0:02:53]} 12. Kf1 {[%clk 0:02:41]}  O-O-O {[%clk 0:02:40]} 13. Rh3 {[%clk 0:02:40]}  Kb7 {[%clk 0:02:37]} 14. Bd2 {[%clk 0:02:37]}  f6 {[%clk 0:02:37]} 15. Ng4 {[%clk 0:02:17]}  Nf5 {[%clk 0:02:09]} 16. Bf4 {[%clk 0:02:05]}  Be7 {[%clk 0:02:03]} 17. Qd3 {[%clk 0:02:04]}  cxd4 {[%clk 0:01:56]} 18. cxd4 {[%clk 0:02:04]}  Rc8 {[%clk 0:01:53]} 19. a3 {[%clk 0:02:04]}  Rhe8 {[%clk 0:01:41]} 20. exf6 {[%clk 0:02:03]}  Bxf6 {[%clk 0:01:37]} 21. Nge5 {[%clk 0:01:46]}  Nxe5 {[%clk 0:01:37]} 22. Bxe5 {[%clk 0:01:45]}  Qa4 {[%clk 0:01:31]} 23. g4 {[%clk 0:01:38]}  Ne7 {[%clk 0:01:13]} 24. Re1 {[%clk 0:01:37]}  Nc6 {[%clk 0:01:05]} 25. Bxf6 {[%clk 0:01:37]}  gxf6 {[%clk 0:01:06]} 26. Qh7+ {[%clk 0:01:38]}  Rc7 {[%clk 0:01:03]} 27. Qxh6 {[%clk 0:01:38]}  Nxd4 {[%clk 0:01:01]} 28. Qxf6 {[%clk 0:01:34]}  Nxf3 {[%clk 0:01:01]} 29. Qxf3 {[%clk 0:01:35]}  Qc4+ {[%clk 0:00:56]} 30. Kg2 {[%clk 0:01:11]}  Rg7 {[%clk 0:00:54]} 31. Rg3 {[%clk 0:01:11]}  e5 {[%clk 0:00:39]} 32. h6 {[%clk 0:01:10]}  e4 {[%clk 0:00:37]} 33. Qf5 {[%clk 0:01:02]}  Rc7 {[%clk 0:00:37]} 34. Rc3 {[%clk 0:00:50]}  Qb5 {[%clk 0:00:22]} 35. Rxc7+ {[%clk 0:00:49]}  Kxc7 {[%clk 0:00:23]} 36. Rc1+ {[%clk 0:00:42]}  Kb7 {[%clk 0:00:20]} 37. h7 {[%clk 0:00:42]}  Qd3 {[%clk 0:00:13]} 38. Rc3 {[%clk 0:00:36]}  Qb5 {[%clk 0:00:11]} 39. a4 {[%clk 0:00:31]}  Qxa4 {[%clk 0:00:10]} 40. Qxd5+ {[%clk 0:00:31]}  Ka6 {[%clk 0:00:10]} 41. Ra3 {[%clk 0:00:31]}  Qxa3 {[%clk 0:00:09]} 42. bxa3 {[%clk 0:00:32]}  Rh8 {[%clk 0:00:02]} 43. Qg8 {[%clk 0:00:30]}  Rxg8 {[%clk 0:00:02]} 44. hxg8=Q {[%clk 0:00:31]}  Ka5 {[%clk 0:00:01]} 45. Qb3 {[%clk 0:00:30]}  a6 {[%clk 0:00:01]} 46. Qb4# {[%clk 0:00:30]} 1-0


[Site "https://www.chess.com"]